fUST/lending_fUST_20250808
["ID","MTS","AMOUNT","RATE_DAILY","PERIOD"]
[377882353,1754595041456,-1738.28,0.00022191,2]
[377882354,1754595041465,-503.73,0.00022191,2]
[377882355,1754595041474,-460.0,0.00022191,2]
[377882356,1754595041483,-538.56,0.00022191,2]
[377882357,1754595041492,-766.9,0.00022191,2]
[377882358,1754595041502,-462.82,0.00022191,2]
[377882359,1754595041511,-495.36,0.00022191,2]
[377882360,1754595041520,-991.68,0.00022191,2]
[377882361,1754595041530,-460.0,0.00022191,2]
[377882362,1754595041539,-460.0,0.00022191,2]
[377882363,1754595041548,-460.0,0.00022191,2]
[377882364,1754595041557,-460.0,0.00022191,2]
[377882365,1754595041566,-1095.33,0.00022191,2]
[377882366,1754595041575,-460.0,0.00022191,2]
[377882367,1754595041585,-460.0,0.00022191,2]
[377882368,1754595041594,-460.0,0.00022191,2]
[377882369,1754595041603,-1460.32,0.00022191,2]
[377882370,1754595041612,-460.0,0.00022191,2]
[377882371,1754595041622,-913.79,0.00022191,2]
[377882372,1754595041631,-460.0,0.00022191,2]
[377882373,1754595041641,-460.0,0.00022191,2]
[377882374,1754595041650,-460.0,0.00022191,2]
[377882375,1754595041659,-1221.75,0.00022191,2]
[377882376,1754595041668,-460.0,0.00022191,2]
[377882377,1754595041678,-2549.73,0.00022191,2]
[377882378,1754595041687,-460.0,0.00022191,2]
[377882379,1754595041697,-245.88,0.00022191,2]
[377882380,1754595041707,-460.0,0.00022191,2]
[377882381,1754595041716,-460.0,0.00022191,2]
[377882382,1754595041726,-460.0,0.00022191,2]
[377882383,1754595041735,-460.0,0.00022191,2]
[377882384,1754595041744,-460.0,0.00022191,2]
[377882385,1754595041754,-460.0,0.00022191,2]
[377882386,1754595041774,-460.0,0.00022191,2]
[377882387,1754595041787,-460.0,0.00022191,2]
[377882388,1754595041797,-460.0,0.00022191,2]
[377882389,1754595041807,-498.22,0.00022191,2]
[377882390,1754595041817,-567.35,0.00022191,2]
[377882391,1754595041827,-481.5,0.00022191,2]
[377882392,1754595041837,-1929.45,0.00022191,2]
[377882393,1754595041846,-460.0,0.00022191,2]
[377882394,1754595041857,-460.0,0.00022191,2]
[377882395,1754595041867,-936.58,0.00022191,2]
[377882396,1754595041876,-460.0,0.00022191,2]
[377882397,1754595041886,-460.0,0.00022191,2]
[377882398,1754595041895,-460.0,0.00022191,2]
[377882399,1754595041904,-3330.65,0.00022191,2]
[377882400,1754595041913,-460.0,0.00022191,2]
[377882401,1754595041923,-1026.28,0.00022191,2]
[377882402,1754595041932,-460.0,0.00022191,2]
[377882403,1754595041942,-460.0,0.00022191,2]
[377882404,1754595041951,-460.0,0.00022191,2]
[377882405,1754595041961,-469.44,0.00022191,2]
[377882406,1754595041970,-742.64,0.00022191,2]
[377882407,1754595041979,-460.0,0.00022191,2]
[377882408,1754595041988,-460.0,0.00022191,2]
[377882409,1754595041998,-698.79,0.00022191,2]
[377882410,1754595042008,-460.0,0.00022191,2]
[377882411,1754595042017,-460.0,0.00022191,2]
[377882412,1754595042027,-1224.79,0.00022191,2]
[377882413,1754595042036,-460.0,0.00022191,2]
[377882414,1754595042046,-460.0,0.00022191,2]
[377882415,1754595042056,-460.0,0.00022191,2]
[377882416,1754595042065,-1358.92,0.00022191,2]
[377882417,1754595042075,-460.0,0.00022191,2]
[377882418,1754595042084,-3833.11269264,0.00022365,2]
[377882419,1754595042095,-460.0,0.00022465,2]
[377882420,1754595042104,-460.0,0.00022465,2]
[377882421,1754595042113,-460.0,0.00022465,2]
[377882422,1754595042123,-460.0,0.00022465,2]
[377882423,1754595042132,-460.0,0.00022465,2]
[377882424,1754595042141,-460.0,0.00022465,2]
[377882425,1754595042151,-460.0,0.00022465,2]
[377882426,1754595042161,-739.4,0.00022465,2]
[377882427,1754595042170,-645.04,0.00022465,2]
[377882428,1754595042180,-460.0,0.00022465,2]
[377882429,1754595042189,-460.0,0.00022465,2]
[377882430,1754595042200,-460.0,0.00022465,2]
[377882431,1754595042209,-581.15,0.00022465,2]
[377882432,1754595042219,-263.57619824,0.00022465,2]
[377882433,1754595042229,-460.0,0.00022465,2]
[377882434,1754595042239,-272.87984282,0.00022465,2]
[377882435,1754595042250,-460.0,0.00022465,2]
[377882436,1754595042259,-460.0,0.00022465,2]
[377882437,1754595042456,-460.0,0.00022465,2]
[377882438,1754595042466,-460.0,0.00022465,2]
[377882439,1754595042475,-460.0,0.00022465,2]
[377882440,1754595042485,-541.37,0.00022465,2]
[377882441,1754595042495,-460.0,0.00022465,2]
[377882442,1754595042504,-460.0,0.00022465,2]
[377882443,1754595042513,-395.68416889,0.00022465,2]
[377882444,1754595042523,-460.0,0.00022465,2]
[377882445,1754595042532,-460.0,0.00022465,2]
[377882446,1754595042542,-513.82,0.00022465,2]
[377882447,1754595042551,-551.184994,0.00022465,2]
[377882448,1754595042560,-460.0,0.00022465,2]
[377882449,1754595042569,-460.0,0.00022465,2]
[377882450,1754595042578,-460.0,0.00022465,2]
[377882451,1754595042588,-460.0,0.00022465,2]
[377882452,1754595042597,-460.0,0.00022465,2]
[377882453,1754595042606,-460.0,0.00022465,2]
[377882454,1754595042616,-1206.22,0.00022465,2]
[377882455,1754595042625,-759.82,0.00022465,2]
[377882456,1754595042634,-578.33,0.00022465,2]
[377882457,1754595042644,-583.61,0.00022465,2]
[377882458,1754595042653,-1738.28,0.00022465,2]
[377882459,1754595042662,-503.73,0.00022465,2]
[377882460,1754595042671,-538.56,0.00022465,2]
[377882461,1754595042682,-766.9,0.00022465,2]
[377882462,1754595042691,-462.82,0.00022465,2]
[377882463,1754595042701,-495.36,0.00022465,2]
[377882464,1754595042710,-991.68,0.00022465,2]
[377882465,1754595042720,-460.0,0.00022465,2]
[377882466,1754595042729,-460.0,0.00022465,2]
[377882467,1754595042739,-460.0,0.00022465,2]
[377882468,1754595042751,-1095.33,0.00022465,2]
[377882469,1754595042761,-460.0,0.00022465,2]
[377882470,1754595042771,-460.0,0.00022465,2]
[377882471,1754595042784,-1460.32,0.00022465,2]
[377882472,1754595042794,-460.0,0.00022465,2]
[377882473,1754595042803,-913.79,0.00022465,2]
[377882474,1754595042812,-328.0440907,0.00022465,2]
[377882475,1754595042822,-460.0,0.00022465,2]
[377882476,1754595042832,-460.0,0.00022465,2]
[377882477,1754595042841,-1221.75,0.00022465,2]
[377882478,1754595042852,-460.0,0.00022465,2]
[377882479,1754595042861,-2549.73,0.00022465,2]
[377882480,1754595042871,-460.0,0.00022465,2]
[377882481,1754595042880,-460.0,0.00022465,2]
[377882482,1754595042889,-460.0,0.00022465,2]
[377882483,1754595042899,-460.0,0.00022465,2]
[377882484,1754595042909,-460.0,0.00022465,2]
[377882485,1754595042918,-460.0,0.00022465,2]
[377882486,1754595042927,-498.22,0.00022465,2]
[377882487,1754595042937,-460.0,0.00022465,2]
[377882488,1754595042946,-567.35,0.00022465,2]
[377882489,1754595042957,-481.5,0.00022465,2]
[377882490,1754595042966,-1929.45,0.00022465,2]
[377882491,1754595042976,-460.0,0.00022465,2]
[377882492,1754595042985,-936.58,0.00022465,2]
[377882493,1754595042995,-460.0,0.00022465,2]
[377882494,1754595043004,-3330.65,0.00022465,2]
[377882495,1754595043013,-460.0,0.00022465,2]
[377882496,1754595043022,-1026.28,0.00022465,2]
[377882497,1754595043032,-460.0,0.00022465,2]
[377882498,1754595043041,-460.0,0.00022465,2]
[377882499,1754595043051,-422.31,0.00022465,2]
[377882500,1754595043060,-469.44,0.00022465,2]
[377882501,1754595043069,-742.64,0.00022465,2]
[377882502,1754595043079,-460.0,0.00022465,2]
[377882503,1754595043088,-698.79,0.00022465,2]
[377882505,1754595043098,-460.0,0.00022465,2]
[377882506,1754595043107,-1224.79,0.00022465,2]
[377882507,1754595043117,-460.0,0.00022465,2]
[377882508,1754595043126,-1358.92,0.00022465,2]
[377882509,1754595043136,-328.24415096,0.00022639,2]
[377882510,1754595043145,-1000.0,0.00022721,2]
[377882511,1754595043154,-516.52536223,0.00022721,2]
[377882512,1754595043163,-1000.0,0.00022721,2]
[377882513,1754595043173,-244.59,0.00022739,2]
[377882514,1754595043182,-460.0,0.00022739,2]
[377882515,1754595043191,-460.0,0.00022739,2]
[377882516,1754595043201,-460.0,0.00022739,2]
[377882517,1754595043210,-460.0,0.00022739,2]
[377882518,1754595043220,-460.0,0.00022739,2]
[377882519,1754595043229,-739.4,0.00022739,2]
[377882520,1754595043239,-645.04,0.00022739,2]
[377882521,1754595043249,-460.0,0.00022739,2]
[377882522,1754595043259,-460.0,0.00022739,2]
[377882523,1754595043268,-460.0,0.00022739,2]
[377882524,1754595043277,-581.15,0.00022739,2]
[377882525,1754595043287,-460.0,0.00022739,2]
[377882526,1754595043296,-460.0,0.00022739,2]
[377882528,1754595043305,-460.0,0.00022739,2]
[377882530,1754595043315,-541.37,0.00022739,2]
[377882532,1754595043324,-460.0,0.00022739,2]
[377882534,1754595043333,-460.0,0.00022739,2]
[377882536,1754595043343,-460.0,0.00022739,2]
[377882537,1754595043352,-306.72,0.00022739,2]
[377882538,1754595043362,-513.82,0.00022739,2]
[377882539,1754595043371,-460.0,0.00022739,2]
[377882540,1754595043380,-460.0,0.00022739,2]
[377882541,1754595043389,-460.0,0.00022739,2]
[377882542,1754595043399,-521.0,0.00022739,2]
[377882543,1754595043408,-1206.22,0.00022739,2]
[377882544,1754595043417,-759.82,0.00022739,2]
[377882545,1754595043427,-578.33,0.00022739,2]
[377882546,1754595043436,-583.61,0.00022739,2]
[377882547,1754595043446,-1738.28,0.00022739,2]
[377882548,1754595043455,-503.73,0.00022739,2]
[377882549,1754595043465,-538.56,0.00022739,2]
[377882550,1754595043475,-462.82,0.00022739,2]
[377882551,1754595043484,-766.9,0.00022739,2]
[377882552,1754595043494,-495.36,0.00022739,2]
[377882553,1754595043503,-991.68,0.00022739,2]
[377882554,1754595043512,-460.0,0.00022739,2]
[377882555,1754595043522,-460.0,0.00022739,2]
[377882556,1754595043531,-1095.33,0.00022739,2]
[377882557,1754595043540,-460.0,0.00022739,2]
[377882558,1754595043550,-1460.32,0.00022739,2]
[377882559,1754595043559,-913.79,0.00022739,2]
[377882560,1754595043569,-460.0,0.00022739,2]
[377882561,1754595043578,-460.0,0.00022739,2]
[377882562,1754595043587,-1221.75,0.00022739,2]
[377882563,1754595043597,-460.0,0.00022739,2]
[377882564,1754595043607,-2549.73,0.00022739,2]
[377882565,1754595043616,-460.0,0.00022739,2]
[377882566,1754595043626,-460.0,0.00022739,2]
[377882567,1754595043635,-460.0,0.00022739,2]
[377882568,1754595043645,-460.0,0.00022739,2]
[377882569,1754595043656,-551.24337789,0.00022739,2]
[377882570,1754595043666,-498.22,0.00022739,2]
[377882571,1754595043675,-460.0,0.00022739,2]
[377882572,1754595043685,-567.35,0.00022739,2]
[377882573,1754595043694,-481.5,0.00022739,2]
[377882574,1754595043703,-1929.45,0.00022739,2]
[377882575,1754595043713,-460.0,0.00022739,2]
[377882576,1754595043723,-936.58,0.00022739,2]
[377882577,1754595043733,-460.0,0.00022739,2]
[377882578,1754595043742,-3330.65,0.00022739,2]
[377882579,1754595043751,-460.0,0.00022739,2]
[377882580,1754595043761,-1026.28,0.00022739,2]
[377882581,1754595043771,-554.50193937,0.00022739,2]
[377882582,1754595043783,-460.0,0.00022739,2]
[377882584,1754595043793,-469.44,0.00022739,2]
[377882586,1754595043803,-742.64,0.00022739,2]
[377882588,1754595043813,-460.0,0.00022739,2]
[377882590,1754595043823,-698.79,0.00022739,2]
[377882592,1754595043834,-460.0,0.00022739,2]
[377882594,1754595043844,-1224.79,0.00022739,2]
[377882596,1754595043854,-460.0,0.00022739,2]
[377882598,1754595043864,-1358.92,0.00022739,2]
[377882599,1754595043873,-500.0,0.00022773,2]
[377882600,1754595043883,-300.0,0.00022779,2]
[377882601,1754595043892,-300.0,0.00022779,2]
[377882602,1754595043901,-151.0,0.00022779,2]
[377882603,1754595043911,-300.0,0.00022779,2]
[377882604,1754595043920,-300.0,0.00022779,2]
[377882605,1754595043930,-300.0,0.00022779,2]
[377882607,1754595043940,-300.0,0.00022779,2]
[377882608,1754595043950,-300.0,0.00022779,2]
[377882609,1754595043959,-300.0,0.00022779,2]
[377882610,1754595043969,-300.0,0.00022779,2]
[377882611,1754595043979,-300.0,0.00022779,2]
[377882612,1754595043988,-300.0,0.00022779,2]
[377882613,1754595043998,-151.0,0.00022779,2]
[377882614,1754595044008,-151.0,0.00022779,2]
[377882615,1754595044018,-151.0,0.00022779,2]
[377882616,1754595044027,-151.0,0.00022779,2]
[377882617,1754595044036,-151.0,0.00022779,2]
[377882618,1754595044046,-151.0,0.00022779,2]
[377882619,1754595044055,-151.0,0.00022779,2]
[377882620,1754595044064,-151.0,0.00022779,2]
[377882621,1754595044073,-151.0,0.00022779,2]
[377882622,1754595044082,-151.0,0.00022779,2]
[377882623,1754595044091,-151.0,0.00022779,2]
[377882624,1754595044101,-183.54014622,0.00022913,2]
[377882625,1754595044110,-160.0,0.00023,2]
[377882626,1754595044119,-200.0,0.00023011,15]
[377882627,1754595044129,-300.0,0.00023011,15]
[377882628,1754595044138,-219.72,0.00023013,2]
[377882629,1754595044147,-460.0,0.00023013,2]
[377882630,1754595044156,-460.0,0.00023013,2]
[377882631,1754595044166,-460.0,0.00023013,2]
[377882632,1754595044175,-460.0,0.00023013,2]
[377882633,1754595044184,-739.4,0.00023013,2]
[377882634,1754595044193,-645.04,0.00023013,2]
[377882635,1754595044203,-460.0,0.00023013,2]
[377882636,1754595044213,-581.15,0.00023013,2]
[377882637,1754595044223,-536.85,0.00023013,2]
[377882638,1754595044233,-460.0,0.00023013,2]
[377882639,1754595044244,-460.0,0.00023013,2]
[377882640,1754595044253,-541.37,0.00023013,2]
[377882641,1754595044262,-460.0,0.00023013,2]
[377882642,1754595044272,-460.0,0.00023013,2]
[377882643,1754595044281,-460.0,0.00023013,2]
[377882644,1754595044290,-513.82,0.00023013,2]
[377882645,1754595044300,-460.0,0.00023013,2]
[377882646,1754595044309,-460.0,0.00023013,2]
[377882647,1754595044318,-460.0,0.00023013,2]
[377882648,1754595044328,-1206.22,0.00023013,2]
[377882649,1754595044337,-759.82,0.00023013,2]
[377882650,1754595044346,-578.33,0.00023013,2]
[377882651,1754595044356,-583.61,0.00023013,2]
[377882652,1754595044365,-1738.28,0.00023013,2]
[377882653,1754595044374,-503.73,0.00023013,2]
[377882654,1754595044384,-538.56,0.00023013,2]
[377882655,1754595044393,-462.82,0.00023013,2]
[377882656,1754595044402,-766.9,0.00023013,2]
[377882657,1754595044413,-495.36,0.00023013,2]
[377882658,1754595044423,-991.68,0.00023013,2]
[377882659,1754595044434,-460.0,0.00023013,2]
[377882660,1754595044443,-1095.33,0.00023013,2]
[377882661,1754595044454,-460.0,0.00023013,2]
[377882662,1754595044463,-1274.22613605,0.00023013,2]
[377882663,1754595044638,-186.09386395,0.00023013,2]
[377882664,1754595044647,-913.79,0.00023013,2]
[377882665,1754595044658,-460.0,0.00023013,2]
[377882666,1754595044667,-1221.75,0.00023013,2]
[377882667,1754595044676,-471.49317827,0.00023013,2]
[377882668,1754595044686,-2549.73,0.00023013,2]
[377882669,1754595044695,-460.0,0.00023013,2]
[377882670,1754595044704,-460.0,0.00023013,2]
[377882671,1754595044714,-460.0,0.00023013,2]
[377882672,1754595044723,-460.0,0.00023013,2]
[377882673,1754595044733,-498.22,0.00023013,2]
[377882674,1754595044744,-460.0,0.00023013,2]
[377882675,1754595044753,-567.35,0.00023013,2]
[377882676,1754595044763,-481.5,0.00023013,2]
[377882677,1754595044773,-1929.45,0.00023013,2]
[377882678,1754595044788,-382.0,0.00023013,2]
[377882679,1754595044797,-936.58,0.00023013,2]
[377882680,1754595044807,-460.0,0.00023013,2]
[377882681,1754595044816,-3330.65,0.00023013,2]
[377882682,1754595044827,-460.0,0.00023013,2]
[377882683,1754595044836,-1026.28,0.00023013,2]
[377882684,1754595044846,-469.44,0.00023013,2]
[377882685,1754595044856,-524.85598629,0.00023013,2]
[377882686,1754595044868,-217.78401371,0.00023013,2]
[377882687,1754595044879,-246.43295778,0.00023013,2]
[377882688,1754595045179,-460.0,0.00021917,2]
[377882689,1754595045189,-213.56704222,0.00023013,2]
[377882690,1754595045198,-698.79,0.00023013,2]
[377882691,1754595045208,-460.0,0.00023013,2]
[377882692,1754595045219,-1224.79,0.00023013,2]
[377882693,1754595045228,-460.0,0.00023013,2]
[377882694,1754595045237,-1358.92,0.00023013,2]
[377882695,1754595045247,-160.0,0.00023082,2]
[377882696,1754595045256,-215.31718835,0.00023086,2]
[377882697,1754595045265,-527.57568145,0.00023086,2]
[377882698,1754595045274,-160.0,0.00023086,2]
[377882699,1754595045284,-231.83071243,0.00023086,2]
[377882700,1754595045292,-160.0,0.00023086,2]
[377882701,1754595045302,-312.16666667,0.00023086,2]
[377882702,1754595045311,-461.3695942,0.00023086,2]
[377882703,1754595045321,-842.63596909,0.00023086,2]
[377882704,1754595045330,-216.52217562,0.00023086,2]
[377882705,1754595045342,-8687.21687963,0.00023086,2]
[377882706,1754595045365,-1309.60459778,0.00023086,2]
[377882711,1754595046842,-460.0,0.00022191,2]
[377882712,1754595046853,-460.0,0.00022465,2]
[377882713,1754595046863,-460.0,0.00022739,2]
[377882714,1754595046873,-460.0,0.00023013,2]
[377882715,1754595046882,-2664.08291672,0.00023086,2]
[377882716,1754595046892,-160.0,0.00023086,2]
[377882717,1754595046902,-286.91937532,0.00023121,2]
[377882718,1754595046912,-315.37,0.0002325,2]
[377882719,1754595046923,-1500.0,0.00023268,2]
[377882720,1754595046932,-59.70631334,0.00023268,2]
[377882721,1754595046954,-1440.29368666,0.00023268,2]
[377882722,1754595046964,-600.0,0.00023277,2]
[377882723,1754595046973,-500.0,0.00023285,2]
[377882724,1754595046983,-500.0,0.00023285,2]
[377882725,1754595046992,-150.0,0.00023285,2]
[377882726,1754595047001,-500.0,0.00023285,2]
[377882727,1754595047011,-460.0,0.00023287,2]
[377882728,1754595047020,-460.0,0.00023287,2]
[377882729,1754595047030,-460.0,0.00023287,2]
[377882730,1754595047040,-460.0,0.00023287,2]
[377882731,1754595047050,-739.4,0.00023287,2]
[377882732,1754595047059,-645.04,0.00023287,2]
[377882733,1754595047068,-460.0,0.00023287,2]
[377882734,1754595047078,-581.15,0.00023287,2]
[377882735,1754595047087,-460.0,0.00023287,2]
[377882736,1754595047096,-460.0,0.00023287,2]
[377882737,1754595047106,-541.37,0.00023287,2]
[377882738,1754595047116,-460.0,0.00023287,2]
[377882739,1754595047125,-460.0,0.00023287,2]
[377882740,1754595047134,-460.0,0.00023287,2]
[377882741,1754595047144,-513.82,0.00023287,2]
[377882742,1754595047154,-460.0,0.00023287,2]
[377882743,1754595047163,-460.0,0.00023287,2]
[377882744,1754595047172,-131.42573137,0.00023287,2]
[377882745,1754595089492,150.0,0.00020913,2]
[377882746,1754595263142,2304.772574,0.00031996,120]
[377882750,1754595517455,150.0,0.00021481,2]
[377882752,1754595596963,19850.0,0.00020931,2]
[377882753,1754595596985,5050.0,0.00020931,2]
[377882754,1754595610034,5000.0,0.00021481,2]
[377882755,1754595701974,494.258093,0.00013699,2]
[377882756,1754595702202,494.258093,0.00020187,2]
[377882765,1754596050757,163.696614,0.00020906,2]
[377882782,1754596231888,-308.52621004,0.00021717,2]
[377882783,1754596231898,-300.0,0.00021816,2]
[377882784,1754596231908,-1200.0,0.00021816,2]
[377882786,1754596231917,-4034.22556036,0.00021817,2]
[377882788,1754596231926,-300.0,0.000219,2]
[377882790,1754596231936,-300.0,0.000219,2]
[377882791,1754596231946,-300.0,0.000219,2]
[377882793,1754596231955,-500.0,0.00021902,2]
[377882794,1754596231964,-143.85444717,0.00021902,2]
[377882796,1754596231976,-352.11,0.00021902,2]
[377882861,1754596235604,-422.75656817,0.00021901,2]
[377882862,1754596235613,-272.10095031,0.00021901,2]
[377882863,1754596235622,-379.86854724,0.00021901,2]
[377882864,1754596235631,-45024.89208927,0.00021902,2]
[377882865,1754596235640,-1200.0,0.00021902,2]
[377882866,1754596235649,-500.0,0.00021904,2]
[377882867,1754596235659,-500.0,0.00021904,2]
[377882869,1754596235669,-500.0,0.00021904,2]
[377882870,1754596235678,-500.0,0.00021904,2]
[377882871,1754596235687,-500.0,0.00021904,2]
[377882873,1754596235697,-500.0,0.00021904,2]
[377882875,1754596235706,-500.0,0.00021904,2]
[377882877,1754596235715,-500.0,0.00021904,2]
[377882878,1754596235723,-500.0,0.00021904,2]
[377882879,1754596235732,-500.0,0.00021904,2]
[377882880,1754596235741,-557.53155746,0.00021904,2]
[377882881,1754596235750,-253.46838707,0.00021904,2]
[377882882,1754596235758,-277.10753761,0.00021916,2]
[377882883,1754596235767,-500.0,0.00021916,2]
[377882884,1754596235776,-500.0,0.00021916,2]
[377882885,1754596235785,-500.0,0.00021916,2]
[377882886,1754596235794,-500.0,0.00021916,2]
[377882887,1754596235802,-500.0,0.00021916,2]
[377882888,1754596235811,-500.0,0.00021916,2]
[377882889,1754596235820,-500.0,0.00021916,2]
[377882890,1754596235829,-500.0,0.00021916,2]
[377882891,1754596235839,-500.0,0.00021916,2]
[377882892,1754596235848,-500.0,0.00021916,2]
[377882893,1754596235856,-287.805485,0.00021916,2]
[377882894,1754596235865,-500.0,0.00021916,2]
[377882895,1754596235874,-300.0,0.00021916,2]
[377882896,1754596235883,-500.0,0.00021917,2]
[377882897,1754596235892,-466.07650036,0.00021917,2]
[377882898,1754596235900,-545.08978256,0.00021917,2]
[377882899,1754596235909,-460.0,0.00021917,2]
[377882900,1754596235918,-460.0,0.00021917,2]
[377882901,1754596235927,-460.0,0.00021917,2]
[377882902,1754596235936,-460.0,0.00021917,2]
[377882903,1754596235946,-460.0,0.00021917,2]
[377882904,1754596235954,-487.99184102,0.00021917,2]
[377882905,1754596235964,-460.0,0.00021917,2]
[377882906,1754596235973,-460.0,0.00021917,2]
[377882907,1754596235982,-460.0,0.00021917,2]
[377882908,1754596235991,-414.17638285,0.00021917,2]
[377882909,1754596236000,-460.0,0.00021917,2]
[377882910,1754596236010,-460.0,0.00021917,2]
[377882911,1754596236019,-460.0,0.00021917,2]
[377882912,1754596236029,-460.0,0.00021917,2]
[377882913,1754596236038,-460.0,0.00021917,2]
[377882914,1754596236047,-460.0,0.00021917,2]
[377882915,1754596236056,-460.0,0.00021917,2]
[377882916,1754596236066,-460.0,0.00021917,2]
[377882917,1754596236076,-797.23,0.00021917,2]
[377882918,1754596236086,-460.0,0.00021917,2]
[377882919,1754596236096,-460.0,0.00021917,2]
[377882920,1754596236106,-460.0,0.00021917,2]
[377882921,1754596236115,-460.0,0.00021917,2]
[377882922,1754596236125,-460.0,0.00021917,2]
[377882923,1754596236134,-466.41311887,0.00021917,2]
[377882924,1754596236145,-2107.23,0.00021917,2]
[377882925,1754596236157,-460.0,0.00021917,2]
[377882926,1754596236167,-460.0,0.00021917,2]
[377882927,1754596236176,-460.0,0.00021917,2]
[377882928,1754596236187,-460.0,0.00021917,2]
[377882929,1754596236198,-584.38,0.00021917,2]
[377882930,1754596236207,-589.6,0.00021917,2]
[377882931,1754596236217,-460.0,0.00021917,2]
[377882932,1754596236227,-460.0,0.00021917,2]
[377882933,1754596236237,-460.0,0.00021917,2]
[377882934,1754596236247,-460.0,0.00021917,2]
[377882935,1754596236256,-460.0,0.00021917,2]
[377882936,1754596236266,-466.69051865,0.00021917,2]
[377882937,1754596236275,-518.26136396,0.00021917,2]
[377882938,1754596236285,-460.0,0.00021917,2]
[377882939,1754596236295,-460.0,0.00021917,2]
[377882940,1754596236304,-460.0,0.00021917,2]
[377882941,1754596236313,-460.0,0.00021917,2]
[377882942,1754596236322,-460.0,0.00021917,2]
[377882943,1754596236331,-460.0,0.00021917,2]
[377882944,1754596236341,-460.0,0.00021917,2]
[377882945,1754596236350,-460.0,0.00021917,2]
[377882946,1754596236359,-460.0,0.00021917,2]
[377882947,1754596236368,-460.0,0.00021917,2]
[377882948,1754596236378,-460.0,0.00021917,2]
[377882949,1754596236387,-460.0,0.00021917,2]
[377882950,1754596236396,-461.76388655,0.00021917,2]
[377882951,1754596236406,-460.0,0.00021917,2]
[377882952,1754596236415,-460.0,0.00021917,2]
[377882953,1754596236425,-460.0,0.00021917,2]
[377882954,1754596236434,-460.0,0.00021917,2]
[377882955,1754596236446,-460.0,0.00021917,2]
[377882956,1754596236457,-460.0,0.00021917,2]
[377882957,1754596236467,-502.11640325,0.00021917,2]
[377882958,1754596236477,-460.0,0.00021917,2]
[377882959,1754596236486,-460.0,0.00021917,2]
[377882960,1754596236495,-460.0,0.00021917,2]
[377882961,1754596236505,-460.0,0.00021917,2]
[377882962,1754596236514,-460.0,0.00021917,2]
[377882963,1754596236523,-460.0,0.00021917,2]
[377882964,1754596236533,-460.0,0.00021917,2]
[377882965,1754596236542,-460.0,0.00021917,2]
[377882966,1754596236551,-710.03,0.00021917,2]
[377882967,1754596236560,-460.0,0.00021917,2]
[377882968,1754596236569,-460.0,0.00021917,2]
[377882969,1754596236578,-460.0,0.00021917,2]
[377882970,1754596236587,-460.0,0.00021917,2]
[377882971,1754596236599,-460.0,0.00021917,2]
[377882972,1754596236608,-460.0,0.00021917,2]